bitfinex/quotes_BTCUSD_20220205
["timestamp","ask_amount","ask_price","bid_price","bid_amount"]
[1644042106641,0.16348874,41657.0,41656.0,1.474666]
[1644042107043,0.16348874,41657.0,41656.0,1.11716277]
[1644042107243,0.16348874,41657.0,41656.0,1.4746759]
[1644042109093,0.16348874,41657.0,41656.0,1.07794168]
[1644042110293,0.00412682,41669.0,41659.0,0.060001]
[1644042110495,0.16484192,41673.0,41668.0,0.05543775]
[1644042110702,0.330788,41673.0,41672.0,0.05543775]
[1644042110894,0.16484192,41675.0,41663.0,0.43008275]
[1644042111093,0.05271887,41673.0,41672.0,0.0482]
[1644042111293,0.05271887,41673.0,41670.0,0.2577168]
[1644042111493,0.28771512,41676.0,41670.0,0.2577168]
[1644042111743,0.23499625,41676.0,41670.0,0.2577168]
[1644042112144,0.05271887,41673.0,41670.0,0.2577168]
[1644042113346,0.05271887,41673.0,41672.0,0.21458204]
[1644042115045,0.05271887,41673.0,41670.0,0.2577168]
[1644042116997,0.05271887,41673.0,41670.0,0.48087049]
[1644042117496,0.05271887,41673.0,41669.0,0.05999]
[1644042118297,0.05271887,41673.0,41669.0,0.05499]
[1644042119144,0.29354501,41673.0,41669.0,0.05499]
[1644042119547,0.29354501,41673.0,41668.0,0.26826061]
[1644042120244,0.29271887,41673.0,41668.0,0.26826061]
[1644042120443,0.29354502,41673.0,41668.0,0.26826061]
[1644042120644,0.29354502,41673.0,41668.0,0.52681598]
[1644042121048,0.29354502,41673.0,41668.0,0.58776076]
[1644042121252,0.29271887,41673.0,41668.0,0.58776076]
[1644042121446,0.29271887,41673.0,41668.0,0.32920539]
[1644042121744,0.05271887,41670.0,41668.0,0.00095078]
[1644042122644,0.22223629,41669.0,41668.0,0.00095078]
[1644042123297,0.55302429,41669.0,41668.0,0.00095078]
[1644042124598,0.330788,41669.0,41668.0,0.00095078]
[1644042125998,0.58220249,41669.0,41668.0,0.00095078]
[1644042129444,0.330788,41669.0,41668.0,0.00095078]
[1644042132203,0.05271887,41670.0,41668.0,0.00095078]
[1644042133000,0.25510069,41669.0,41668.0,0.00095078]
[1644042133602,0.05271887,41670.0,41668.0,0.00095078]
[1644042134011,0.630788,41669.0,41668.0,0.00095078]
[1644042134255,0.778988,41669.0,41668.0,0.00095078]
[1644042134454,0.878988,41669.0,41668.0,0.00095078]
[1644042134658,0.00190156,41666.0,41656.0,0.30658622]
[1644042134957,0.00190156,41666.0,41653.0,0.3574451]
[1644042134958,0.06002321,41658.0,41654.0,0.00020471]
[1644042135157,0.05271887,41655.0,41651.0,0.29284235]
[1644042135453,0.06002321,41658.0,41652.0,0.00020471]
[1644042135652,0.06002321,41658.0,41651.0,0.29263764]
[1644042135952,0.05271887,41652.0,41651.0,0.29263764]
[1644042136452,0.05271887,41652.0,41651.0,0.52343478]
[1644042136856,0.28374192,41662.0,41651.0,0.52343478]
[1644042137053,0.05271887,41655.0,41652.0,0.330788]
[1644042137252,0.05271887,41655.0,41654.0,0.187855]
[1644042137654,0.05271887,41655.0,41653.0,0.12021871]
[1644042137891,0.05271887,41655.0,41653.0,0.120014]
[1644042138092,0.05271887,41655.0,41652.0,0.00020471]
[1644042138291,0.05271887,41655.0,41652.0,0.00082479]
[1644042138492,0.05271887,41655.0,41652.0,0.0010295]
[1644042139296,0.05271887,41655.0,41652.0,0.00020471]
[1644042139492,0.05271887,41655.0,41651.0,0.45043878]
[1644042139693,0.05271887,41652.0,41651.0,0.45043878]
[1644042140293,0.05271887,41652.0,41651.0,0.23162193]
[1644042140495,0.05271887,41652.0,41651.0,0.23079714]
[1644042141295,0.29271887,41652.0,41651.0,0.23079714]
[1644042141646,0.29271887,41652.0,41651.0,0.44808859]
[1644042142244,0.29271887,41652.0,41650.0,0.00020471]
[1644042142444,0.29271887,41652.0,41649.0,0.00102953]
[1644042142943,0.29271887,41652.0,41649.0,0.00020471]
[1644042143146,0.29271887,41652.0,41648.0,0.19018874]
[1644042143444,0.29271887,41652.0,41651.0,0.256358]
[1644042143644,0.29271887,41652.0,41649.0,0.25573865]
[1644042146397,0.29271887,41652.0,41650.0,0.330788]
[1644042148494,0.29271887,41652.0,41650.0,0.390804]
[1644042150841,0.29271887,41652.0,41649.0,0.52299026]
[1644042151243,0.29271887,41652.0,41650.0,0.26174157]
[1644042152048,0.29271887,41652.0,41651.0,0.330788]
[1644042153095,0.29271887,41652.0,41651.0,0.330997]
[1644042155597,0.29271887,41652.0,41651.0,0.000209]
[1644042156197,0.29271887,41652.0,41650.0,0.000209]
[1644042156397,0.29271887,41652.0,41650.0,0.330788]
[1644042156643,0.29271887,41652.0,41650.0,0.330997]
[1644042157046,0.24,41652.0,41651.0,0.45146074]
[1644042157251,0.24,41652.0,41651.0,0.45166974]
[1644042157447,0.24,41652.0,41651.0,0.45146074]
[1644042157946,0.24,41652.0,41651.0,0.67147874]
[1644042158146,0.24,41652.0,41651.0,0.71988774]
[1644042160499,0.24,41652.0,41651.0,0.81988774]
[1644042166044,0.24,41652.0,41651.0,0.81488774]
[1644042168496,0.17603357,41652.0,41651.0,0.81488774]
[1644042168894,0.17103357,41652.0,41651.0,0.81488774]
[1644042170895,0.17103357,41652.0,41651.0,0.81467874]
[1644042175792,0.17103357,41652.0,41651.0,0.76647874]
[1644042176392,0.17103357,41652.0,41651.0,0.502905]
[1644042177594,0.17103357,41652.0,41651.0,0.77649763]
[1644042177794,0.17103357,41652.0,41651.0,0.307905]
[1644042178894,0.17103357,41652.0,41651.0,0.5681747]
[1644042179348,0.17103357,41652.0,41651.0,0.6681747]
[1644042179550,0.17103357,41652.0,41651.0,0.88991052]
[1644042181149,0.17103357,41652.0,41651.0,0.62964082]
[1644042181349,0.17103357,41652.0,41651.0,0.89049246]
[1644042181548,0.17103357,41652.0,41651.0,0.62964082]
[1644042183996,0.17103357,41652.0,41651.0,0.407905]
[1644042185199,0.17103357,41652.0,41651.0,0.66240823]
[1644042186499,0.17103357,41652.0,41651.0,0.92310896]
[1644042187648,0.17103357,41652.0,41651.0,0.66240823]
[1644042189451,0.17103357,41652.0,41651.0,0.407905]
[1644042190152,0.17103357,41652.0,41651.0,0.1]
[1644042190393,0.17103357,41652.0,41650.0,0.004208]
[1644042190893,0.05261873,41651.0,41650.0,0.004208]
[1644042191301,0.17103357,41652.0,41650.0,0.004208]
[1644042191495,0.05249971,41651.0,41650.0,0.004208]
[1644042199599,0.33535808,41651.0,41650.0,0.004208]
[1644042201001,0.05249971,41651.0,41650.0,0.064227]
[1644042202545,0.33121848,41651.0,41650.0,0.064227]
[1644042202746,0.33121848,41651.0,41650.0,0.004208]
[1644042204250,0.05249971,41651.0,41650.0,0.004208]
[1644042207193,0.05249971,41651.0,41650.0,0.064227]
[1644042207392,0.05249971,41651.0,41650.0,0.004208]
[1644042208392,0.33251428,41651.0,41650.0,0.004208]
[1644042209449,0.05249971,41651.0,41650.0,0.004208]
[1644042209650,0.33242682,41651.0,41650.0,0.004208]
[1644042210246,0.05249971,41651.0,41650.0,0.004208]
[1644042212249,0.33987159,41651.0,41650.0,0.004208]
[1644042212448,0.67065959,41651.0,41650.0,0.004208]
[1644042212654,0.670574,41651.0,41650.0,0.004208]
[1644042213509,0.99949889,41650.0,41648.0,0.00082555]
[1644042213708,0.63286492,41649.0,41646.0,0.000209]
[1644042213909,0.79771961,41649.0,41647.0,0.00082557]
[1644042214107,0.33986866,41648.0,41647.0,0.00082557]
[1644042214308,0.67065666,41648.0,41647.0,0.00082557]
[1644042214909,0.67065666,41648.0,41642.0,0.000209]
[1644042215209,0.05241412,41643.0,41641.0,0.010209]
[1644042215409,0.05241412,41643.0,41641.0,0.01]
[1644042215809,0.05241412,41643.0,41641.0,0.130062]
[1644042216009,0.05241412,41643.0,41641.0,0.130271]
[1644042216209,0.05241412,41643.0,41641.0,0.129471]
[1644042216410,0.05241412,41643.0,41641.0,0.189502]
[1644042218547,0.05241412,41643.0,41642.0,0.330788]
[1644042218747,0.05241412,41643.0,41642.0,0.330997]
[1644042220996,0.29241412,41643.0,41642.0,0.330997]
[1644042223098,0.29241412,41643.0,41642.0,0.430997]
[1644042227994,0.29158917,41643.0,41642.0,0.430997]
[1644042230595,0.29048428,41643.0,41642.0,0.430997]
[1644042236400,0.29048428,41643.0,41642.0,0.100209]
[1644042236800,0.29048428,41643.0,41642.0,0.000209]
[1644042236999,0.29048428,41643.0,41641.0,0.189293]
[1644042237000,0.29048428,41643.0,41641.0,0.129471]
[1644042238100,0.29048428,41643.0,41641.0,0.189503]
[1644042239347,0.29048428,41643.0,41642.0,0.19981445]
[1644042239553,0.29048428,41643.0,41642.0,0.330997]
[1644042239747,0.29048428,41643.0,41642.0,0.000209]
[1644042239950,0.29048428,41643.0,41641.0,0.129471]
[1644042242452,0.29048428,41643.0,41641.0,0.189502]
[1644042244300,0.28650627,41642.0,41641.0,0.129471]
[1644042244499,0.28650627,41642.0,41641.0,0.010209]
[1644042244698,0.61729427,41642.0,41641.0,0.010209]
[1644042245099,0.61729427,41642.0,41641.0,0.01]
[1644042245300,0.86847397,41642.0,41641.0,0.01]
[1644042245701,0.78217981,41642.0,41641.0,0.01]
[1644042246747,1.05409914,41642.0,41641.0,0.01]
[1644042247346,0.78217981,41642.0,41641.0,0.01]
[1644042248348,1.00835991,41642.0,41641.0,0.01]
[1644042249147,0.77717981,41642.0,41641.0,0.01]
[1644042249547,0.49567354,41642.0,41641.0,0.01]
[1644042249950,0.330788,41642.0,41641.0,0.01]
[1644042250598,0.56078562,41642.0,41641.0,0.01]
[1644042250804,0.62083662,41642.0,41641.0,0.01]
[1644042251400,0.72567116,41642.0,41641.0,0.01]
[1644042251800,0.87228231,41642.0,41641.0,0.01]
[1644042252200,1.03716785,41642.0,41641.0,0.01]
[1644042256665,0.72567116,41642.0,41641.0,0.01]
[1644042257051,0.56078562,41642.0,41641.0,0.01]
[1644042258699,0.330788,41642.0,41641.0,0.01]
[1644042259697,0.56710391,41642.0,41641.0,0.01]
[1644042260700,0.73198945,41642.0,41641.0,0.01]
[1644042261663,1.04115461,41642.0,41641.0,0.01]
[1644042262151,0.73198945,41642.0,41641.0,0.01]
[1644042262952,0.56710391,41642.0,41641.0,0.01]
[1644042263152,0.73202661,41642.0,41641.0,0.01]
[1644042263353,0.56710391,41642.0,41641.0,0.01]
[1644042263554,0.73202661,41642.0,41641.0,0.01]
[1644042263754,0.56710391,41642.0,41641.0,0.01]
[1644042264057,0.330788,41640.0,41639.0,0.00082601]
[1644042264254,0.66788288,41640.0,41633.0,0.120088]
[1644042264453,0.05158917,41634.0,41633.0,0.120088]
[1644042264652,0.05158917,41634.0,41631.0,0.070051]
[1644042265053,0.05158917,41634.0,41631.0,0.01]
[1644042265895,0.05158917,41634.0,41631.0,0.070052]
[1644042269451,0.24369341,41633.0,41631.0,0.070052]
[1644042269649,0.24369341,41633.0,41631.0,0.130101]
[1644042271245,0.14239237,41633.0,41631.0,0.130101]
[1644042271448,0.24675269,41632.0,41631.0,0.130101]
[1644042273696,0.24675269,41632.0,41631.0,0.070052]
[1644042274795,0.24675269,41632.0,41631.0,0.1301]
[1644042276097,0.48675269,41632.0,41631.0,0.1301]
[1644042278550,0.48675269,41632.0,41631.0,0.070052]
[1644042279949,0.48675269,41632.0,41631.0,0.07025993]
[1644042280150,0.48675269,41632.0,41631.0,0.15636865]
[1644042280401,0.6826214,41632.0,41631.0,0.07025993]
[1644042280601,0.72800902,41632.0,41631.0,0.07025993]
[1644042280802,0.77620902,41632.0,41631.0,0.01020793]
[1644042281004,0.77620902,41632.0,41631.0,0.01]
[1644042281301,1.10699702,41632.0,41631.0,0.01]
[1644042281704,1.27191972,41632.0,41631.0,0.01]
[1644042281901,1.10699702,41632.0,41631.0,0.01]
[1644042282101,1.27191972,41632.0,41631.0,0.01]
[1644042283205,1.27191972,41632.0,41623.0,0.47969491]
[1644042283206,0.75,41630.0,41623.0,0.06335891]
[1644042283408,0.75,41630.0,41621.0,0.005]
[1644042283409,0.05158917,41624.0,41621.0,0.005]
[1644042283605,0.05158917,41624.0,41621.0,0.00520793]
[1644042283606,0.378988,41623.0,41621.0,0.00520793]
[1644042283804,0.378988,41623.0,41621.0,0.005]
[1644042284250,0.45541709,41623.0,41621.0,0.005]
[1644042285055,0.45541709,41623.0,41621.0,0.00520793]
[1644042285252,0.51549386,41623.0,41621.0,0.00520793]
[1644042285451,0.6149859,41622.0,41621.0,0.00520793]
[1644042286051,0.6149859,41622.0,41621.0,0.005]
[1644042286451,0.330788,41622.0,41621.0,0.005]
[1644042287895,0.570788,41622.0,41621.0,0.005]
[1644042289104,1.0278709,41622.0,41621.0,0.005]
[1644042289300,0.8629482,41622.0,41621.0,0.005]
[1644042289501,1.0760709,41622.0,41621.0,0.005]
[1644042289700,0.9611482,41622.0,41621.0,0.005]
[1644042289901,1.1260709,41622.0,41621.0,0.005]
[1644042290905,0.8339107,41622.0,41621.0,0.005]
[1644042291303,0.668988,41622.0,41621.0,0.005]
[1644042293158,0.99034335,41622.0,41621.0,0.005]
[1644042293559,1.15526605,41622.0,41621.0,0.005]
[1644042293859,1.04034335,41622.0,41621.0,0.005]
[1644042294058,1.20526605,41622.0,41621.0,0.005]
[1644042295599,1.15526605,41622.0,41621.0,0.005]
[1644042295800,1.10526605,41622.0,41621.0,0.005]
[1644042296802,1.10526605,41622.0,41621.0,0.00520793]
[1644042297199,1.10526605,41622.0,41621.0,0.005]
[1644042299959,0.94034335,41622.0,41621.0,0.005]
[1644042300156,1.10526605,41622.0,41621.0,0.005]
[1644042300355,0.94034335,41622.0,41621.0,0.005]
[1644042300558,1.10526605,41622.0,41621.0,0.005]
[1644042300760,0.94034335,41622.0,41621.0,0.005]
[1644042300955,0.7357107,41622.0,41621.0,0.005]
[1644042301157,0.570788,41622.0,41621.0,0.005]
[1644042303001,0.570788,41622.0,41621.0,0.00520793]
[1644042303202,0.570788,41622.0,41621.0,0.005]
[1644042304206,0.24,41622.0,41621.0,0.005]
[1644042304403,0.24,41622.0,41621.0,0.00520793]
[1644042304602,0.24,41622.0,41621.0,0.005]
[1644042304804,0.24,41622.0,41621.0,0.07207188]
[1644042305003,0.24,41622.0,41621.0,0.31605968]
[1644042305403,0.24,41622.0,41621.0,0.07207188]
[1644042305608,0.24,41622.0,41621.0,0.19218288]
[1644042307053,0.24,41622.0,41621.0,0.39016198]
[1644042307254,0.23991387,41622.0,41621.0,0.9904313]
[1644042307454,0.23991387,41622.0,41621.0,0.4616642]
[1644042308661,0.23991387,41622.0,41621.0,0.6676151]
[1644042308855,0.23991387,41622.0,41621.0,0.39459232]
[1644042310057,0.23991387,41622.0,41621.0,0.67133334]
[1644042310262,0.23991387,41622.0,41621.0,1.17909957]
[1644042310505,0.23991387,41622.0,41621.0,1.1793075]
[1644042310704,0.23991387,41622.0,41621.0,1.0793075]
[1644042310903,0.23991387,41622.0,41621.0,1.1793075]
[1644042312204,0.23991387,41622.0,41621.0,1.2793075]
[1644042313404,0.23991387,41622.0,41621.0,1.0793075]
[1644042314004,0.23991387,41622.0,41621.0,0.80982618]
[1644042314856,0.23991387,41622.0,41621.0,0.90982618]
[1644042329759,0.23981258,41622.0,41621.0,0.90982618]
[1644042332903,0.23981258,41622.0,41621.0,0.90644416]
[1644042336650,0.23981258,41622.0,41621.0,1.16393395]
[1644042340259,0.23981258,41622.0,41621.0,1.04382295]
[1644042341504,0.23981258,41622.0,41621.0,1.10387795]
[1644042342604,0.23981258,41622.0,41621.0,0.84638816]
[1644042342904,0.23981258,41622.0,41621.0,0.84618023]
[1644042343104,0.23981258,41622.0,41621.0,0.84638816]
[1644042346551,0.23981258,41622.0,41621.0,1.11441732]
[1644042346754,0.23981258,41622.0,41621.0,1.16240939]
[1644042346951,0.23981258,41622.0,41621.0,1.16261732]
[1644042348805,0.50930236,41637.0,41621.0,1.16261732]
[1644042348806,0.16497434,41636.0,41623.0,0.75]
[1644042349008,0.16497434,41636.0,41635.0,0.05]
[1644042349205,0.16497434,41640.0,41635.0,0.17793635]
[1644042349405,0.16497434,41641.0,41638.0,0.05]
[1644042349605,0.16497434,41642.0,41638.0,0.05]
[1644042349805,0.4975737,41645.0,41639.0,0.25633735]
[1644042350007,0.4975737,41645.0,41642.0,0.060023]
[1644042350008,0.27772631,41645.0,41642.0,0.060023]
[1644042350405,0.330788,41644.0,41642.0,0.060023]
[1644042350606,0.3,41644.0,41637.0,0.12004889]
[1644042351408,0.00082413,41645.0,41640.0,0.19713344]
[1644042351664,0.00082413,41645.0,41643.0,0.110029]
[1644042351860,0.24581107,41647.0,41643.0,0.110029]
[1644042352158,0.00082413,41645.0,41642.0,0.17482148]
[1644042353158,0.21567698,41648.0,41642.0,0.17482148]
[1644042353358,0.00082413,41646.0,41642.0,0.17482148]
[1644042354359,0.21567698,41648.0,41642.0,0.17482148]
[1644042354560,0.00082412,41646.0,41642.0,0.17482148]
[1644042354961,0.24082412,41646.0,41642.0,0.17482148]
[1644042355506,0.24,41646.0,41642.0,0.17482148]
[1644042355704,0.24082412,41646.0,41642.0,0.17482148]
[1644042356607,0.24,41646.0,41642.0,0.17482148]
[1644042357011,0.24082412,41646.0,41642.0,0.17482148]
[1644042357812,0.24,41646.0,41642.0,0.17482148]
[1644042358008,0.24,41646.0,41642.0,0.12482148]
[1644042358209,0.24082412,41646.0,41642.0,0.12482148]
[1644042359011,0.24,41646.0,41642.0,0.12482148]
[1644042359254,0.24082412,41646.0,41642.0,0.060027]
[1644042360256,0.24,41646.0,41642.0,0.060027]
[1644042360459,0.24082412,41646.0,41642.0,0.060027]
[1644042361257,0.24082412,41646.0,41642.0,0.37969896]
[1644042361458,0.24,41646.0,41642.0,0.31966496]
[1644042361858,0.24082412,41646.0,41644.0,0.05]
[1644042362156,0.24082412,41646.0,41645.0,0.59535958]
[1644042362756,0.24,41646.0,41645.0,0.59535958]
[1644042363408,0.24,41646.0,41645.0,0.65537858]
[1644042364006,0.24,41646.0,41645.0,0.70357858]
[1644042364410,0.24,41646.0,41645.0,0.539007]
[1644042365809,0.22080823,41646.0,41645.0,0.539007]
[1644042366408,0.22080823,41646.0,41645.0,0.82684966]
[1644042370811,0.22080823,41646.0,41645.0,0.539007]
[1644042371005,0.12080823,41646.0,41645.0,0.589007]
[1644042372707,0.12080823,41646.0,41645.0,0.85688816]
[1644042377159,0.002,41652.0,41647.0,0.46861005]
[1644042377358,0.002,41652.0,41649.0,0.38075]
[1644042377565,0.002,41652.0,41649.0,0.38700387]
[1644042377758,0.002,41652.0,41649.0,0.48700387]
[1644042378016,0.002,41652.0,41649.0,0.53520387]
[1644042378215,0.002,41652.0,41650.0,0.07977346]
[1644042378421,0.002,41652.0,41650.0,0.13978346]
[1644042378618,0.002,41652.0,41650.0,0.07977346]
[1644042379618,0.002,41652.0,41651.0,0.330788]
[1644042379819,0.002,41652.0,41651.0,0.430788]
[1644042381023,0.002,41652.0,41651.0,0.1]
[1644042381418,0.002,41652.0,41651.0,0.05]
[1644042381669,0.002,41652.0,41650.0,0.07977346]
[1644042381861,0.002,41652.0,41651.0,0.380788]
[1644042382261,0.002,41652.0,41651.0,0.69036202]
[1644042382461,0.00207511,41653.0,41651.0,0.69036202]
[1644042382661,0.00207511,41653.0,41652.0,0.060013]
[1644042382862,0.00207511,41653.0,41652.0,0.247888]
[1644042383061,0.00125108,41653.0,41652.0,0.247888]
[1644042384462,0.00082401,41655.0,41654.0,0.23953626]
[1644042384662,0.00082401,41655.0,41652.0,0.27280803]
[1644042384663,0.25008488,41653.0,41652.0,0.27280803]
[1644042384861,0.25008488,41653.0,41652.0,0.60359603]
[1644042385270,0.25008488,41653.0,41652.0,0.70359603]
[1644042387713,0.49008488,41653.0,41652.0,0.70359603]
[1644042387913,0.49008488,41653.0,41652.0,0.96608573]
[1644042388615,0.49008488,41653.0,41652.0,0.70359603]
[1644042388815,0.25008488,41653.0,41652.0,0.70359603]
[1644042389259,0.25008488,41653.0,41652.0,0.75359603]
[1644042389763,0.25008488,41653.0,41652.0,0.70359603]
[1644042389962,0.25008488,41653.0,41652.0,0.75359603]
[1644042393210,0.25008488,41653.0,41652.0,0.70359603]
[1644042393412,0.25008488,41653.0,41652.0,0.75359603]
[1644042398377,0.25008488,41653.0,41652.0,0.70359603]
[1644042398980,0.41008488,41653.0,41652.0,0.70359603]
[1644042399880,0.41008488,41653.0,41652.0,0.37280803]
[1644042401515,0.41008488,41653.0,41652.0,0.27280803]
[1644042402215,0.5617,41659.0,41654.0,0.22287101]
[1644042402416,0.004,41664.0,41654.0,0.28288201]
[1644042402618,0.001,41663.0,41654.0,0.28288201]
[1644042403216,0.004,41664.0,41654.0,0.28288201]
[1644042403416,0.6932055,41667.0,41660.0,0.2483157]
[1644042403617,0.330788,41666.0,41660.0,0.2483157]
[1644042403818,0.330788,41666.0,41664.0,0.02030233]
[1644042404161,0.330788,41666.0,41664.0,0.01830233]
[1644042406767,0.330865,41665.0,41664.0,0.01830233]
[1644042408011,0.063003,41673.0,41664.0,0.07830533]
[1644042408212,0.00017865,41675.0,41665.0,0.3816912]
[1644042408415,0.002,41676.0,41674.0,0.06582561]
[1644042409009,0.002,41676.0,41674.0,0.36709009]
[1644042409410,0.31991084,41686.0,41675.0,0.25]
[1644042409613,0.001,41686.0,41675.0,0.25]
[1644042410009,0.20335997,41685.0,41674.0,0.60710709]
[1644042410211,0.20335997,41685.0,41681.0,0.07798999]
[1644042410413,0.2682469,41684.0,41678.0,0.36131977]
[1644042411210,0.2682469,41684.0,41678.0,0.2742579]
[1644042411861,0.2682469,41684.0,41678.0,0.019931]
[1644042412162,0.07090829,41680.0,41678.0,0.019931]
[1644042413659,0.07090829,41680.0,41676.0,0.08097862]
[1644042414260,0.26174854,41681.0,41676.0,0.08097862]
[1644042414561,0.75,41680.0,41654.0,0.229962]
[1644042414765,0.03389009,41670.0,41669.0,0.27626292]
[1644042414960,0.03389009,41670.0,41669.0,0.34697891]
[1644042415412,0.00389009,41670.0,41669.0,0.72671878]
[1644042416814,0.00389009,41670.0,41669.0,0.68060887]
[1644042417112,0.00389009,41670.0,41669.0,0.72671878]
[1644042418515,0.07741884,41673.0,41669.0,0.85058587]
[1644042418714,0.07741884,41673.0,41669.0,0.51971687]
[1644042419014,0.23628327,41676.0,41669.0,0.51971687]
[1644042419565,0.23628327,41676.0,41669.0,0.52054032]
[1644042420160,0.08430036,41674.0,41670.0,0.059988]
[1644042420559,0.08430036,41674.0,41670.0,0.06081143]
[1644042421361,0.08430036,41674.0,41670.0,0.12079943]
[1644042421560,0.08430036,41674.0,41670.0,0.119976]
[1644042421759,0.08430036,41674.0,41670.0,0.12079944]
[1644042421959,0.08430036,41674.0,41670.0,0.17079944]
[1644042422665,0.08430036,41674.0,41670.0,0.33079944]
[1644042422908,0.08430036,41674.0,41670.0,0.429976]
[1644042423109,0.08430036,41674.0,41670.0,0.68821852]
[1644042424108,0.08430036,41674.0,41670.0,0.68739508]
[1644042424310,0.06847082,41674.0,41670.0,0.68821852]
[1644042424810,0.06847082,41674.0,41670.0,0.43079944]
[1644042425212,0.23952343,41679.0,41670.0,0.429976]
[1644042425509,0.26291279,41678.0,41672.0,0.059986]
[1644042426309,0.08220029,41676.0,41672.0,0.059986]
[1644042426761,0.08220029,41676.0,41672.0,0.06080942]
[1644042427659,0.08220029,41676.0,41672.0,0.059986]
[1644042427864,0.08220029,41676.0,41672.0,0.06080942]
[1644042428866,0.08220029,41676.0,41672.0,0.059986]
[1644042429062,0.08220029,41676.0,41672.0,0.06080942]
[1644042430063,0.08220029,41676.0,41672.0,0.059986]
[1644042430263,0.08220029,41676.0,41672.0,0.06080942]
[1644042431317,0.08220029,41676.0,41672.0,0.059986]
[1644042431514,0.08220029,41676.0,41672.0,0.06080942]
[1644042431915,0.26291279,41678.0,41672.0,0.06080942]
[1644042432318,0.06720391,41677.0,41672.0,0.06080942]
[1644042432517,0.06720391,41677.0,41672.0,0.059986]
[1644042435067,0.06720391,41677.0,41672.0,0.06080949]
[1644042435467,0.06720391,41677.0,41672.0,0.00082349]
[1644042435468,0.20536214,41677.0,41672.0,0.00082349]
[1644042435666,0.0482,41676.0,41672.0,0.00082349]
[1644042435870,0.0482,41675.0,41672.0,0.00082349]
[1644042436066,0.0482,41674.0,41670.0,0.16]
[1644042436267,0.0482,41673.0,41672.0,0.00082349]
[1644042436767,0.13755567,41673.0,41672.0,0.00082349]
[1644042437164,0.13755567,41673.0,41670.0,0.16]
[1644042437366,0.13755567,41673.0,41670.0,0.16082351]
[1644042438019,0.13755567,41673.0,41670.0,0.22081751]
[1644042438522,0.13755567,41673.0,41670.0,0.219994]
[1644042439722,0.13450657,41675.0,41670.0,0.219994]
[1644042439922,0.18270657,41675.0,41670.0,0.219994]
[1644042440121,0.0982,41675.0,41670.0,0.219994]
[1644042440322,0.29034676,41679.0,41670.0,0.219994]
[1644042440524,0.07168245,41674.0,41670.0,0.219994]
[1644042440723,0.11988245,41674.0,41670.0,0.28360327]
[1644042441228,0.11988245,41674.0,41670.0,0.28442678]
[1644042441424,0.11988245,41674.0,41670.0,0.22081751]
[1644042442062,0.11988245,41674.0,41670.0,0.219994]
[1644042442261,0.11988245,41674.0,41670.0,0.22081751]
[1644042443162,0.26092983,41672.0,41670.0,0.219994]
[1644042443462,0.26092983,41672.0,41670.0,0.22081751]
[1644042443866,0.26092983,41672.0,41670.0,0.16082351]
[1644042444465,0.26092983,41672.0,41670.0,0.16]
[1644042444662,0.26092983,41672.0,41663.0,0.239973]
[1644042444663,0.5,41671.0,41663.0,0.239973]
[1644042444863,0.07691623,41666.0,41663.0,0.239973]
[1644042445063,0.26092983,41672.0,41663.0,0.239973]
[1644042445713,0.26092983,41672.0,41665.0,0.059993]
[1644042445915,0.2107463,41670.0,41666.0,0.059995]
[1644042446112,0.26092983,41672.0,41666.0,0.059995]
[1644042446516,0.08167937,41668.0,41666.0,0.059995]
[1644042448015,0.07890018,41668.0,41666.0,0.059995]
[1644042450760,0.29561482,41667.0,41666.0,0.059995]
[1644042450961,0.29561482,41667.0,41665.0,0.12081023]
[1644042450962,0.07890018,41668.0,41665.0,0.12081023]
[1644042451564,0.07890018,41668.0,41665.0,0.119987]
[1644042454017,0.50818852,41674.0,41665.0,0.119987]
[1644042454222,0.0482,41676.0,41665.0,0.119987]
[1644042454223,0.32988135,41675.0,41668.0,0.059991]
[1644042454419,0.20660436,41676.0,41668.0,0.059991]
[1644042455117,0.08695752,41671.0,41668.0,0.059991]
[1644042455317,0.21551695,41672.0,41668.0,0.059991]
[1644042455517,0.22761901,41673.0,41668.0,0.059991]
[1644042456116,0.2066044,41676.0,41668.0,0.059991]
[1644042456318,0.2066044,41676.0,41670.0,0.059991]
[1644042456518,0.25992796,41673.0,41670.0,0.059991]
[1644042456773,0.07382555,41671.0,41667.0,0.00082322]
[1644042457567,0.20450188,41670.0,41667.0,0.00082322]
[1644042457768,0.26450688,41670.0,41663.0,0.1637]
[1644042458068,0.19874758,41666.0,41663.0,0.05]
[1644042459266,0.20450188,41670.0,41663.0,0.05]
[1644042459474,0.30194497,41672.0,41665.0,0.059994]
[1644042459667,0.20578135,41674.0,41665.0,0.059994]
[1644042459869,0.20578135,41674.0,41663.0,0.3568269]
[1644042460269,0.19754209,41671.0,41667.0,0.000781]
[1644042460512,0.06459621,41669.0,41667.0,0.000781]
[1644042460712,0.28596113,41668.0,41667.0,0.000781]
[1644042461315,0.28596113,41668.0,41666.0,0.059991]
[1644042462514,0.27514684,41667.0,41666.0,0.059991]
[1644042463915,0.35318564,41669.0,41666.0,0.059991]
[1644042464765,0.06459621,41669.0,41666.0,0.059991]
[1644042464962,0.27690527,41669.0,41666.0,0.059991]
[1644042465161,0.56057232,41669.0,41666.0,0.059991]
[1644042465359,0.34826326,41669.0,41666.0,0.059991]
[1644042465959,0.06459621,41669.0,41666.0,0.059991]
[1644042466359,0.35506706,41669.0,41665.0,0.00078773]
[1644042466559,0.06459621,41669.0,41665.0,0.00078773]
[1644042467363,0.27980933,41667.0,41664.0,0.119989]
[1644042467559,0.06459621,41669.0,41665.0,0.00078773]
[1644042468420,0.35541439,41669.0,41665.0,0.00078773]
[1644042468622,0.35541439,41669.0,41664.0,0.37842138]
[1644042468822,0.35541439,41669.0,41665.0,0.00078175]
[1644042469122,0.06459621,41669.0,41665.0,0.06077575]
[1644042469323,0.36459621,41670.0,41665.0,0.06077575]
[1644042469522,0.43872909,41670.0,41665.0,0.06077575]
[1644042469724,0.43872909,41670.0,41665.0,0.059994]
[1644042469925,0.43872909,41670.0,41665.0,0.06077575]
[1644042470927,0.43872909,41670.0,41665.0,0.059994]
[1644042471124,0.43872909,41670.0,41665.0,0.06077575]
[1644042471526,0.43872909,41670.0,41665.0,0.12077175]
[1644042472062,0.43872909,41670.0,41665.0,0.11999]
[1644042472263,0.43872909,41670.0,41665.0,0.12077215]
[1644042473260,0.43872909,41670.0,41665.0,0.11999]
[1644042473462,0.36459621,41670.0,41666.0,0.059993]